bitfinex/quotes_SOLUSD_20250129
["timestamp","ask_amount","ask_price","bid_price","bid_amount"]
[1738133105370,6.81107813,232.76,232.75,0.0001]
[1738133105662,6.81107813,232.78,232.76,0.12549]
[1738133105845,0.063,232.79,232.78,0.12549]
[1738133106048,0.063,232.79,232.78,7.36607732]
[1738133106259,0.063,232.79,232.78,37.52886132]
[1738133107340,0.063,232.79,232.78,41.82476132]
[1738133107764,0.063,232.79,232.78,44.39956132]
[1738133107949,0.063,232.79,232.78,43.39956132]
[1738133108260,0.063,232.79,232.78,46.93296179]
[1738133108461,0.063,232.79,232.78,45.93296179]
[1738133109071,0.063,232.79,232.78,48.83296179]
[1738133109665,0.063,232.79,232.78,44.1075526]
[1738133110183,0.063,232.79,232.78,5.55889047]
[1738133110467,0.063,232.79,232.78,29.33577447]
[1738133112061,0.063,232.79,232.78,66.1468526]
[1738133112266,3.69047967,232.86,232.82,20.12549]
[1738133113853,1.2883,232.85,232.82,20.12549]
[1738133114058,6.81107813,232.84,232.82,20.12549]
[1738133114268,6.81107813,232.84,232.8,0.12549]
[1738133114465,6.81107813,232.84,232.8,20.12549]
[1738133116075,1.2884,232.83,232.8,20.12549]
[1738133116977,1.2884,232.83,232.77,23.776884]
[1738133117273,6.81107813,232.82,232.78,0.12549]
[1738133117450,6.81107813,232.82,232.78,20.12549]
[1738133117876,6.81107813,232.82,232.76,0.12549]
[1738133118078,1.2886,232.81,232.76,0.12549]
[1738133119777,6.81107813,232.78,232.75,0.0001]
[1738133119964,6.81107813,232.76,232.75,20.0001]
[1738133121181,6.81107813,232.76,232.75,0.0001]
[1738133121849,8.09987813,232.76,232.75,0.0001]
[1738133124299,1.0,232.75,232.69,0.063]
[1738133124475,6.81107813,232.7,232.69,0.063]
[1738133126071,8.10027813,232.7,232.69,0.063]
[1738133126885,11.32327813,232.7,232.62,0.063]
[1738133127077,6.81107813,232.63,232.62,0.063]
[1738133130068,6.81107813,232.67,232.62,0.063]
[1738133130270,6.81107813,232.66,232.62,0.063]
[1738133131366,1.2894,232.65,232.62,0.063]
[1738133131685,6.81107813,232.64,232.62,0.063]
[1738133131872,8.10047813,232.65,232.62,0.063]
[1738133135997,6.81107813,232.63,232.62,0.063]
[1738133136208,6.81107813,232.63,232.62,0.0001]
[1738133137386,8.10067813,232.63,232.62,0.0001]
[1738133138673,9.60397813,232.63,232.62,0.0001]
[1738133141088,8.10057813,232.65,232.62,0.0001]
[1738133141296,8.10037813,232.67,232.62,0.0001]
[1738133141588,6.81107813,232.66,232.62,0.0001]
[1738133142294,8.10047813,232.66,232.62,0.0001]
[1738133142488,6.81107813,232.63,232.62,0.0001]
[1738133142687,6.81107813,232.64,232.62,0.0001]
[1738133144191,1.2896,232.63,232.62,0.0001]
[1738133144368,8.10067813,232.63,232.62,0.0001]
[1738133148974,17.77267813,232.63,232.51,0.063]
[1738133149198,6.81107813,232.52,232.51,0.063]
[1738133150179,8.10127813,232.52,232.51,0.063]
[1738133151499,11.32677813,232.52,232.44,0.12549]
[1738133151699,6.81107813,232.46,232.44,0.12549]
[1738133151903,6.81107813,232.46,232.42,20.0]
[1738133152278,6.81107813,232.46,232.43,0.12549]
[1738133152486,1.2906,232.45,232.43,0.12549]
[1738133153290,1.2906,232.45,232.4,0.12549]
[1738133153492,6.81107813,232.44,232.4,0.12549]
[1738133154386,8.10167813,232.44,232.42,0.12549]
[1738133154688,8.10167813,232.44,232.38,0.03]
[1738133155083,8.10167813,232.44,232.41,0.12549]
[1738133156002,8.10167813,232.44,232.4,0.12549]
[1738133156205,8.10157813,232.46,232.4,0.12549]
[1738133158980,8.10147813,232.49,232.42,23.902374]
[1738133159504,6.81107813,232.53,232.46,23.902374]
[1738133159888,8.10117813,232.53,232.46,23.902374]
[1738133160514,6.81107813,232.51,232.45,1.5783]
[1738133160685,6.81107813,232.48,232.41,6.81107813]
[1738133161010,1.2904,232.47,232.43,20.0]
[1738133161509,1.2904,232.47,232.44,0.12549]
[1738133162410,1.2904,232.47,232.41,0.12549]
[1738133162582,6.81107813,232.46,232.41,0.12549]
[1738133163313,8.10157813,232.46,232.44,0.03]
[1738133168136,6.81107813,232.45,232.44,0.03]
[1738133168720,6.81107813,232.45,232.38,0.03]
[1738133169030,6.81107813,232.39,232.38,0.03]
[1738133169409,8.10197813,232.39,232.38,0.03]
[1738133173029,1.2909,232.39,232.38,0.03]
[1738133173218,6.81107813,232.41,232.38,0.03]
[1738133173430,6.81107813,232.4,232.38,0.03]
[1738133173631,6.81107813,232.39,232.38,0.03]
[1738133174713,8.10197813,232.39,232.38,0.03]
[1738133175640,1.2909,232.39,232.38,0.03]
[1738133177622,8.10197813,232.39,232.38,0.03]
[1738133185439,6.81107813,232.47,232.38,0.03]
[1738133185753,6.81107813,232.49,232.41,0.12549]
[1738133186647,6.81107813,232.47,232.41,0.12549]
[1738133186854,6.81107813,232.45,232.4,1.5635]
[1738133187034,0.063,232.44,232.4,1.5635]
[1738133187235,6.81107813,232.41,232.38,0.03]
[1738133187531,6.81107813,232.39,232.38,0.03]
[1738133188544,10.67834521,232.39,232.38,0.03]
[1738133189139,11.96924521,232.39,232.38,0.03]
[1738133191043,3.2896,232.44,232.38,0.03]
[1738133191251,10.67834521,232.41,232.38,0.03]
[1738133192325,1.2908,232.4,232.38,0.03]
[1738133193527,10.67834521,232.39,232.38,0.03]
[1738133194738,11.96924521,232.39,232.38,0.03]
[1738133201236,20.0,232.36,232.3,2.54987058]
[1738133201436,10.67834521,232.34,232.3,2.54987058]
[1738133202057,10.67834521,232.34,232.31,2.54987058]
[1738133202863,1.2912,232.33,232.31,2.54987058]
[1738133203871,10.67834521,232.32,232.31,2.54987058]
[1738133204666,1.2912,232.33,232.31,2.54987058]
[1738133204861,1.2912,232.33,232.27,0.03]
[1738133205948,1.2912,232.33,232.27,2.58375268]
[1738133208052,10.67834521,232.32,232.27,2.58375268]
[1738133208551,6.83654042,232.33,232.27,2.58375268]
[1738133208958,6.83654042,232.33,232.28,2.55375268]
[1738133209274,20.0,232.3,232.28,2.55375268]
[1738133209462,6.83654042,232.3,232.28,2.55375268]
[1738133210770,6.83654042,232.3,232.27,0.03]
[1738133211078,1.2915,232.28,232.27,0.03]
[1738133211776,8.12804042,232.28,232.27,0.03]
[1738133213282,6.83654042,232.29,232.27,0.03]
[1738133214786,1.2915,232.28,232.27,0.03]
[1738133215659,6.83654042,232.28,232.27,0.03]
[1738133217175,8.12804042,232.28,232.27,0.03]
[1738133221387,6.83654042,232.31,232.27,0.03]
[1738133221569,1.2912,232.33,232.28,6.83654042]
[1738133221912,6.83654042,232.35,232.28,6.83654042]
[1738133221913,1.291,232.37,232.3,6.83654042]
[1738133222757,6.83654042,232.36,232.3,0.12549]
[1738133224281,1.2911,232.35,232.3,0.12549]
[1738133224490,1.2911,232.35,232.27,30.64342442]
[1738133224659,6.83654042,232.34,232.27,0.03]
[1738133224985,6.83654042,232.34,232.31,3.19121782]
[1738133225592,8.12774042,232.34,232.31,3.19121782]
[1738133226779,6.83654042,232.32,232.31,3.19121782]
[1738133226977,6.83654042,232.32,232.29,3.19121782]
[1738133227156,6.83654042,232.3,232.29,3.19121782]
[1738133228076,6.83654042,232.3,232.27,0.03]
[1738133228779,8.12794042,232.29,232.27,0.03]
[1738133229888,6.83654042,232.28,232.27,0.03]
[1738133231292,8.12804042,232.28,232.27,0.03]
[1738133232283,3.228,232.34,232.27,0.03]
[1738133232284,8.12794042,232.3,232.27,0.03]
[1738133232487,1.2914,232.3,232.27,0.03]
[1738133232792,8.12784042,232.32,232.27,0.03]
[1738133233490,6.83654042,232.31,232.27,0.03]
[1738133233672,6.83654042,232.31,232.28,3.19451393]
[1738133233977,8.12794042,232.31,232.28,3.19451393]
[1738133234487,6.83654042,232.35,232.29,0.12549]
[1738133234997,6.83654042,232.34,232.29,0.12549]
[1738133235484,1.2912,232.33,232.3,3.19451393]
[1738133235691,8.12774042,232.33,232.3,3.19451393]
[1738133235890,8.12774042,232.33,232.3,5.74937858]
[1738133237099,8.12774042,232.33,232.3,2.55486465]
[1738133237400,6.83654042,232.31,232.3,2.55486465]
[1738133237580,6.83654042,232.31,232.27,0.03]
[1738133239192,8.12784042,232.31,232.27,0.03]
[1738133239492,8.12784042,232.31,232.28,2.55656536]
[1738133240577,8.12784042,232.31,232.27,0.03]
[1738133241887,6.83654042,232.33,232.27,0.03]
[1738133242099,8.12784042,232.33,232.27,0.15549]
[1738133242725,8.12784042,232.33,232.28,2.55758804]
[1738133243989,0.063,232.38,232.31,23.902374]
[1738133243990,8.12754042,232.37,232.31,23.902374]
[1738133244186,0.063,232.38,232.33,0.12549]
[1738133245105,1.354,232.38,232.33,0.12549]
[1738133245307,1.354,232.38,232.34,2.55758804]
[1738133246199,6.83654042,232.36,232.34,2.55758804]
[1738133246405,6.83654042,232.35,232.34,2.55758804]
[1738133247101,6.83654042,232.35,232.3,0.03]
[1738133247305,6.83654042,232.32,232.3,0.03]
[1738133247500,1.2913,232.31,232.3,0.03]
[1738133248500,1.2913,232.31,232.3,2.58824999]
[1738133249208,1.2913,232.32,232.3,2.58824999]
[1738133250204,1.2911,232.36,232.31,0.12549]
[1738133250717,1.2911,232.36,232.31,23.902374]
[1738133251101,0.063,232.38,232.31,23.902374]
[1738133251301,1.291,232.37,232.31,23.902374]
[1738133251613,11.97248247,232.37,232.31,23.902374]
[1738133252512,11.97248247,232.37,232.3,0.03]
[1738133252513,10.68148247,232.35,232.3,0.03]
[1738133253116,10.68148247,232.33,232.3,0.03]
[1738133253323,11.97268247,232.33,232.32,2.55834537]
[1738133253914,1.2912,232.33,232.32,2.55834537]
[1738133254820,1.2912,232.33,232.31,2.55834537]
[1738133256025,1.2912,232.33,232.3,0.03]
[1738133256427,1.291,232.37,232.32,10.68148247]
[1738133256722,1.291,232.37,232.34,0.12549]
[1738133258919,1.291,232.37,232.35,2.55776467]
[1738133260529,1.291,232.37,232.34,0.12549]
[1738133261529,0.063,232.44,232.34,0.12549]
[1738133261530,0.063,232.44,232.42,30.0]
[1738133261739,0.063,232.51,232.42,30.0]
[1738133261740,0.063,232.51,232.5,41.80697247]
[1738133261905,40.26427023,232.61,232.57,10.68148247]
[1738133262695,40.26427023,232.61,232.58,23.902374]
[1738133263222,40.26427023,232.61,232.58,0.12549]
[1738133263626,40.26427023,232.61,232.58,2.66962717]
[1738133263999,40.26427023,232.61,232.58,7.74771225]
[1738133264437,0.063,232.63,232.59,23.776884]
[1738133264924,0.063,232.63,232.61,34.58385647]
[1738133265107,0.063,232.63,232.61,35.01365291]
[1738133266422,0.063,232.63,232.61,45.14813022]
[1738133267913,0.063,232.68,232.61,30.83432818]
[1738133268107,0.063,232.68,232.63,10.68148247]
[1738133268308,0.063,232.68,232.64,23.902374]
[1738133268624,0.063,232.68,232.66,0.12549]
[1738133268816,0.063,232.68,232.67,34.58385647]
[1738133269023,0.063,232.68,232.67,35.01352038]
[1738133269206,0.063,232.68,232.67,66.01352038]
[1738133269413,0.063,232.68,232.67,76.69500285]
[1738133269626,0.063,232.68,232.67,81.77308793]
[1738133269830,0.063,232.68,232.67,70.66194155]
[1738133270110,0.063,232.68,232.67,75.38944615]
[1738133271140,0.063,232.68,232.67,80.67911811]
[1738133271320,0.063,232.68,232.67,85.69071568]
[1738133271635,0.063,232.68,232.67,85.26111108]
[1738133272510,0.063,232.68,232.67,80.24951351]
[1738133272813,0.063,232.68,232.67,80.67911865]
[1738133274028,0.063,232.68,232.67,83.69911865]
[1738133274224,0.063,232.68,232.67,83.26951351]
[1738133276212,0.063,232.68,232.67,82.26951351]
[1738133277133,0.063,232.68,232.67,94.95099598]
[1738133277338,0.063,232.68,232.67,92.95099598]
[1738133277850,0.063,232.68,232.67,87.66132402]
[1738133278849,0.063,232.68,232.67,88.66132402]
[1738133279630,0.063,232.68,232.67,89.66132402]
[1738133280133,0.063,232.75,232.72,23.902374]
[1738133280336,0.063,232.75,232.74,10.80697247]
[1738133280531,0.063,232.75,232.74,11.23647883]
[1738133281318,0.063,232.75,232.74,16.31456391]
[1738133281716,0.063,232.75,232.74,15.88505755]
[1738133282957,0.063,232.75,232.74,20.6111888]
[1738133283518,0.063,232.75,232.74,75.3880728]
[1738133283833,0.063,232.86,232.8,23.902374]
[1738133284031,0.063,232.86,232.85,34.58385647]
[1738133292154,0.063,232.86,232.85,39.66194155]
[1738133293747,0.063,232.86,232.85,40.09126467]
[1738133294130,0.063,232.86,232.85,35.01317959]
[1738133295240,0.063,232.86,232.85,39.30777959]
[1738133295434,0.063,232.86,232.85,177.70777959]
[1738133295632,0.063,232.86,232.85,177.27845647]
[1738133296361,0.063,232.87,232.86,53.902374]
[1738133296530,0.063,232.87,232.86,68.87825647]
[1738133296735,0.063,232.87,232.86,69.30750991]
[1738133297753,0.063,232.87,232.86,35.01310991]
[1738133298054,0.063,232.87,232.86,69.30750991]
[1738133299453,0.063,232.92,232.91,53.902374]
[1738133299630,0.063,232.92,232.91,75.69450534]
[1738133299831,0.063,232.92,232.91,76.69450534]
[1738133300059,0.063,232.92,232.91,75.69450534]
[1738133300234,0.063,232.92,232.91,65.01302287]
[1738133300958,0.063,232.92,232.91,80.98800534]
[1738133301158,0.063,232.99,232.97,30.0]
[1738133301459,0.03,233.02,233.01,1.12549]
[1738133301662,0.063,233.1,233.02,23.902374]
[1738133301959,0.063,233.1,233.02,160.302374]
[1738133302169,0.063,233.1,233.05,23.902374]
[1738133302458,0.063,233.1,233.08,23.902374]
[1738133302661,0.063,233.1,233.09,35.01268729]
[1738133302962,0.063,233.1,233.09,39.30278729]
[1738133303253,0.063,233.1,233.09,44.28344304]
[1738133304169,0.063,233.1,233.09,181.68344304]
[1738133304330,0.063,233.1,233.09,181.25461222]
[1738133304530,0.063,233.1,233.09,180.25461222]
[1738133304750,0.063,233.1,233.09,182.7397787]
[1738133305132,0.03,233.17,233.1,54.902374]
[1738133305329,0.03,233.17,233.11,38.0126392]
[1738133305550,0.03,233.17,233.15,0.12549]
[1738133305830,1.5596,233.34,233.17,53.902374]
[1738133306032,1.5596,233.34,233.29,10.68148247]
[1738133306266,1.5596,233.34,233.3,0.12549]
[1738133306435,1.5596,233.34,233.31,10.80697247]
[1738133306637,1.2854,233.38,233.31,34.58385647]
[1738133306840,18.65798247,233.41,233.31,34.58385647]
[1738133307145,1.2853,233.4,233.31,10.80697247]
[1738133307361,20.0,233.38,233.31,10.80697247]
[1738133307655,20.0,233.38,233.31,15.78762822]
[1738133308067,1.2853,233.4,233.31,15.78762822]
[1738133308665,1.2855,233.37,233.31,22.04419903]
[1738133309475,1.2855,233.37,233.31,21.91870903]
[1738133310267,1.2855,233.37,233.31,45.82108303]
[1738133310572,36.93805328,233.42,233.31,45.82108303]
[1738133310770,1.2852,233.41,233.31,40.84042728]
[1738133311670,16.93805328,233.38,233.29,16.93805328]
[1738133311853,16.93805328,233.36,233.28,3.02]
[1738133312656,1.2856,233.35,233.29,16.93805328]
[1738133313836,20.0,233.35,233.29,16.93805328]
[1738133314647,16.93805328,233.36,233.29,16.93805328]
[1738133315283,16.96805328,233.32,233.23,16.93805328]
[1738133315575,16.96805328,233.32,233.24,0.12549]
[1738133315990,1.2858,233.31,233.24,0.12549]
[1738133316182,1.2858,233.31,233.25,16.93805328]
[1738133317282,1.2858,233.31,233.23,17.06354328]
[1738133318387,1.2858,233.31,233.25,16.93805328]
[1738133318755,1.2858,233.31,233.27,16.93805328]
[1738133319157,0.03,233.32,233.3,0.12549]
[1738133319389,0.03,233.32,233.31,17.06354328]
[1738133320885,0.03,233.32,233.31,40.84042728]
[1738133322891,0.03,233.32,233.29,16.93805328]
[1738133323092,0.03,233.32,233.3,0.12549]
[1738133323460,0.03,233.32,233.29,16.93805328]
[1738133323965,0.03,233.32,233.27,17.06354328]
[1738133326792,0.03,233.32,233.25,16.93805328]
[1738133327177,0.03,233.32,233.26,0.12549]
[1738133328089,1.5588,233.31,233.23,16.93805328]
[1738133328273,16.93805328,233.29,233.21,16.93805328]
[1738133328473,1.10875295,233.29,233.21,16.93805328]
[1738133328677,1.2858,233.3,233.24,16.93805328]
[1738133328985,4.5005,233.3,233.24,16.93805328]
[1738133329158,4.5005,233.3,233.18,0.45869755]
[1738133329159,1.2858,233.3,233.26,16.93805328]
[1738133329366,0.03,233.32,233.29,0.12549]
[1738133329581,0.03,233.32,233.3,16.93805328]
[1738133329764,1.3157,233.32,233.3,16.93805328]
[1738133329962,1.3157,233.32,233.26,16.93805328]
[1738133330278,4.5301,233.32,233.24,16.93805328]
[1738133330683,10.5933841,233.3,233.22,10.5933841]
[1738133330882,4.5007,233.29,233.22,10.5933841]
[1738133332388,4.5007,233.29,233.18,0.03]
[1738133332389,10.5933841,233.26,233.18,10.6233841]
[1738133332589,12.1698841,233.26,233.18,10.6233841]
[1738133332896,1.2861,233.25,233.18,10.6233841]
[1738133334065,1.2861,233.25,233.21,10.5933841]
[1738133334995,1.2861,233.25,233.19,10.5933841]
[1738133336995,11.8794841,233.25,233.18,10.6233841]
[1738133337180,1.2861,233.25,233.2,10.5933841]
[1738133337380,1.5765,233.26,233.22,10.5933841]
[1738133337582,1.286,233.27,233.24,10.5933841]
[1738133338175,0.03,233.32,233.26,30.5933841]
[1738133338387,6.4319,233.51,233.39,0.12549]
[1738133338604,1.5225,233.53,233.46,10.5933841]
[1738133338774,1.5225,233.53,233.48,10.5933841]
[1738133339086,2.8071,233.53,233.46,10.5933841]
[1738133339269,1.2845,233.54,233.48,10.5933841]
[1738133339469,11.9407841,233.56,233.48,10.5933841]
[1738133339882,10.5933841,233.52,233.44,10.5933841]
[1738133340092,1.0,233.54,233.42,10.5933841]
[1738133340093,10.5933841,233.5,233.42,10.5933841]
[1738133340389,10.5933841,233.48,233.4,10.5933841]
[1738133340587,1.0,233.52,233.39,17.0537681]
[1738133340588,16.9282781,233.46,233.39,17.0537681]
[1738133340988,1.285,233.46,233.39,17.0537681]
[1738133341191,16.9282781,233.48,233.39,17.0537681]
[1738133341497,18.2131781,233.48,233.41,16.9282781]
[1738133342377,4.2117,233.52,233.41,16.9282781]
[1738133342378,16.9282781,233.5,233.41,16.9282781]
[1738133344305,16.9282781,233.48,233.39,16.9282781]
[1738133344808,1.2849,233.47,233.43,16.9282781]
[1738133344992,16.9282781,233.52,233.45,16.9282781]
[1738133345193,0.063,233.48,233.45,16.9282781]
[1738133346888,1.2849,233.47,233.45,16.9282781]
[1738133347089,1.2849,233.47,233.43,16.9282781]
[1738133349513,1.2849,233.47,233.41,16.9282781]
[1738133349693,20.0,233.43,233.37,16.9282781]
[1738133349874,16.9282781,233.42,233.34,16.9282781]
[1738133350070,7.2755,233.44,233.32,16.9582781]
[1738133350071,16.9282781,233.39,233.32,16.9582781]
[1738133350798,1.2854,233.38,233.32,16.9582781]
[1738133350973,1.2854,233.38,233.35,5.02654038]
[1738133351689,1.2855,233.36,233.35,5.02654038]
[1738133352998,1.2855,233.36,233.32,0.03]
[1738133353579,6.7107117,233.71,233.32,0.03]
[1738133353580,1.2846,233.53,233.41,30.0]
[1738133353809,16.9282781,233.57,233.47,16.9282781]
[1738133353978,1.0,233.57,233.47,16.9282781]
[1738133354178,16.9282781,233.55,233.47,16.9282781]
[1738133354408,16.9282781,233.57,233.47,17.0537681]
[1738133354608,17.9282781,233.58,233.47,16.9282781]
[1738133354778,16.9282781,233.58,233.47,16.9282781]
[1738133354977,1.2845,233.54,233.47,16.9282781]
[1738133355402,1.2845,233.54,233.47,17.0537681]
[1738133355706,1.2846,233.52,233.47,16.9282781]
[1738133355910,16.9282781,233.58,233.47,17.0537681]
[1738133356281,20.0,233.57,233.47,17.0537681]
[1738133356481,20.0,233.55,233.47,16.9282781]
[1738133357200,0.063,233.56,233.47,16.9282781]
[1738133357384,1.2846,233.54,233.47,17.0537681]
[1738133357779,1.2846,233.53,233.47,17.0537681]
[1738133357980,1.2848,233.5,233.47,16.9282781]
[1738133358598,1.2848,233.49,233.47,16.9282781]
[1738133358784,1.2847,233.51,233.47,16.9282781]
[1738133359183,1.2845,233.55,233.47,40.8306521]
[1738133359696,1.2847,233.52,233.47,16.9282781]
[1738133359899,0.063,233.56,233.47,17.0537681]
[1738133360105,1.2846,233.54,233.47,17.0537681]
[1738133364522,0.063,233.56,233.47,17.0537681]
[1738133364689,0.063,233.56,233.47,40.8306521]
[1738133365908,0.063,233.56,233.48,23.902374]
[1738133366094,0.063,233.56,233.55,16.9282781]
[1738133371616,1.3474,233.56,233.55,16.9282781]
[1738133373601,1.3474,233.56,233.53,16.9282781]
[1738133374825,1.3474,233.56,233.52,16.9282781]
[1738133374997,4.5585,233.56,233.5,16.9282781]
[1738133375197,4.5585,233.56,233.51,16.9282781]
[1738133375709,1.3474,233.56,233.52,16.9282781]
[1738133376708,1.3474,233.56,233.54,16.9282781]
[1738133377031,1.3474,233.56,233.52,16.9282781]
[1738133378124,1.3474,233.56,233.5,16.9282781]
[1738133379000,4.5585,233.56,233.5,16.9282781]
[1738133380702,4.5585,233.56,233.49,10.56972229]
[1738133382323,1.2845,233.54,233.48,0.063]
[1738133382493,4.4959,233.54,233.48,0.063]
[1738133384415,4.4959,233.54,233.49,10.56972229]
[1738133384809,3.2114,233.54,233.48,0.063]
[1738133387229,10.56972229,233.53,233.48,0.063]
[1738133387905,11.56972229,233.53,233.48,0.063]
[1738133388305,10.56972229,233.53,233.48,0.063]
[1738133388512,11.56972229,233.53,233.48,0.063]
[1738133389231,4.4963,233.52,233.48,0.063]
[1738133389729,1.2846,233.52,233.51,10.56972229]
[1738133390228,1.2846,233.52,233.5,10.56972229]
[1738133390728,1.2846,233.52,233.49,10.56972229]
[1738133391530,1.2845,233.55,233.49,10.56972229]
[1738133391730,15.06552229,233.55,233.48,10.63272229]
[1738133392838,0.03,233.54,233.48,0.063]
[1738133393028,10.56972229,233.53,233.48,0.063]
[1738133393225,11.56972229,233.53,233.48,0.063]
[1738133393534,10.56972229,233.51,233.48,0.063]
[1738133394943,1.2847,233.5,233.48,0.063]
[1738133396637,10.56972229,233.49,233.48,0.063]
[1738133397117,10.56972229,233.51,233.48,0.063]
[1738133397317,11.85442229,233.51,233.48,0.063]
[1738133400239,11.85442229,233.51,233.4,10.56972229]
[1738133400240,1.0,233.46,233.4,10.56972229]
[1738133400448,1.2847,233.51,233.45,10.56972229]
[1738133400946,1.2847,233.51,233.47,10.56972229]
[1738133401136,1.2847,233.51,233.45,10.56972229]
[1738133401442,1.2847,233.51,233.47,10.56972229]
[1738133401630,1.2847,233.51,233.4,10.56972229]
[1738133401631,1.2847,233.51,233.49,10.56972229]
[1738133402226,1.3146,233.54,233.49,10.56972229]
[1738133402945,11.88432229,233.54,233.46,10.56972229]
[1738133403731,10.56972229,233.52,233.46,10.56972229]
[1738133404340,1.2847,233.51,233.43,10.56972229]
[1738133404534,10.56972229,233.5,233.48,0.063]
[1738133406427,1.2848,233.49,233.48,0.063]
[1738133406931,1.3147,233.51,233.48,0.063]
[1738133407244,0.03,233.51,233.49,10.56972229]
[1738133407659,0.03,233.51,233.48,0.063]
[1738133407660,1.3147,233.51,233.48,0.063]
[1738133407857,0.03,233.51,233.48,0.063]
[1738133408045,0.03,233.51,233.49,10.56972229]
[1738133408243,0.03,233.51,233.48,0.063]
[1738133408928,0.03,233.51,233.49,10.56972229]
[1738133409739,0.03,233.51,233.48,0.063]
[1738133411454,0.03,233.51,233.49,10.56972229]
[1738133412452,0.03,233.51,233.48,0.063]
[1738133416156,0.03,233.51,233.48,10.63272229]
[1738133416643,0.03,233.51,233.48,0.063]
[1738133417350,0.03,233.51,233.48,10.63272229]
[1738133417652,0.03,233.51,233.48,0.063]
[1738133424461,10.59972229,233.51,233.48,0.063]
[1738133424661,10.56972229,233.49,233.48,0.063]
[1738133426468,11.85452229,233.49,233.48,0.063]
[1738133426848,1.2848,233.49,233.48,0.063]
[1738133428563,11.85452229,233.49,233.48,0.063]
[1738133430351,1.2848,233.49,233.48,0.063]
[1738133432179,11.85452229,233.49,233.48,0.063]
[1738133434612,8.05418249,233.49,233.48,0.063]
[1738133437593,0.03,233.51,233.48,6.83238249]
[1738133437763,0.03,233.51,233.5,6.76938249]
[1738133438667,0.03,233.51,233.49,10.56892958]
[1738133441667,0.03,233.51,233.48,10.63192958]
[1738133442391,0.03,233.51,233.48,0.063]
[1738133445683,10.56892958,233.5,233.48,0.063]
[1738133446892,1.2848,233.49,233.48,0.063]
[1738133447388,1.2848,233.49,233.46,1e-08]
[1738133447389,11.85372958,233.49,233.46,1e-08]
[1738133447591,10.56892958,233.47,233.46,1e-08]
[1738133448402,10.56892958,233.47,233.37,10.56892958]
[1738133448780,1.285,233.46,233.39,10.56892958]
[1738133453487,10.56892958,233.45,233.37,10.56892958]
[1738133453689,1.285,233.46,233.39,10.56892958]
[1738133454275,1.285,233.46,233.41,10.56892958]
[1738133454484,1.285,233.46,233.39,10.56892958]
[1738133458701,1.2849,233.48,233.41,10.56892958]
[1738133458882,0.03,233.49,233.43,10.56892958]
[1738133459685,1.3148,233.49,233.43,10.56892958]
[1738133460586,1.3148,233.49,233.44,6.76731044]
[1738133460587,0.03,233.49,233.44,6.76731044]
[1738133460908,0.03,233.49,233.48,6.76731044]
[1738133463696,0.03,233.49,233.48,6.83031044]
[1738133463896,0.03,233.49,233.48,0.063]
[1738133466491,0.03,233.49,233.48,6.83031044]
[1738133468795,0.03,233.49,233.48,0.063]
[1738133471084,0.03,233.49,233.48,11.11331044]
[1738133472601,0.03,233.49,233.48,35.44391984]
[1738133473307,0.03,233.49,233.48,11.11331044]
[1738133477127,0.03,233.49,233.48,11.23880044]
[1738133477797,0.03,233.49,233.48,11.11331044]
[1738133482012,0.03,233.49,233.48,0.063]
[1738133487428,6.79731044,233.49,233.48,0.063]
[1738133487803,0.03,233.49,233.48,0.063]
[1738133492605,28.08211044,233.49,233.48,0.063]
[1738133493329,1.3148,233.49,233.48,0.063]
[1738133494828,0.03,233.49,233.48,0.063]
[1738133499734,6.79731044,233.49,233.48,0.063]
[1738133500218,8.08211044,233.49,233.48,0.063]
[1738133501136,0.03,233.49,233.48,0.063]
[1738133503038,0.03,233.49,233.48,11.11331044]
[1738133503539,0.03,233.49,233.48,6.83031044]